fUST/lending_fUST_20251002
["ID","MTS","AMOUNT","RATE_DAILY","PERIOD"]
[388759931,1759350643240,-500.0,0.00019452,2]
[388759933,1759350643250,-4127.3,0.00019452,2]
[388759934,1759350643259,-500.0,0.00019452,2]
[388759935,1759350643269,-577.79,0.00019452,2]
[388759936,1759350643279,-500.0,0.00019452,2]
[388759937,1759350643288,-1178.69,0.00019452,2]
[388759938,1759350643297,-500.0,0.00019452,2]
[388759939,1759350643309,-500.0,0.00019452,2]
[388759940,1759350643318,-500.0,0.00019452,2]
[388759941,1759350643327,-500.0,0.00019452,2]
[388759942,1759350643337,-500.0,0.00019452,2]
[388759943,1759350643346,-500.0,0.00019452,2]
[388759944,1759350643356,-440.0,0.00019452,2]
[388759945,1759350643365,-420.0,0.00019452,2]
[388759946,1759350643374,-500.0,0.00019452,2]
[388759947,1759350643383,-500.0,0.00019452,2]
[388759948,1759350643392,-500.0,0.00019452,2]
[388759949,1759350643401,-500.0,0.00019452,2]
[388759950,1759350643409,-500.0,0.00019452,2]
[388759951,1759350643418,-500.0,0.00019452,2]
[388759952,1759350643427,-5182.02,0.00019452,2]
[388759953,1759350643436,-500.0,0.00019452,2]
[388759954,1759350643444,-500.0,0.00019452,2]
[388759955,1759350643453,-500.0,0.00019452,2]
[388759956,1759350643462,-500.0,0.00019452,2]
[388759957,1759350643471,-460.0,0.00019452,2]
[388759958,1759350643480,-500.0,0.00019452,2]
[388759960,1759350643489,-500.0,0.00019452,2]
[388759961,1759350643497,-500.0,0.00019452,2]
[388759962,1759350643506,-980.49,0.00019452,2]
[388759963,1759350643515,-460.0,0.00019452,2]
[388759964,1759350643524,-500.0,0.00019452,2]
[388759965,1759350643533,-440.0,0.00019452,2]
[388759966,1759350643541,-940.27,0.00019452,2]
[388759967,1759350643550,-476.64,0.00019452,2]
[388759968,1759350643559,-2384.47,0.00019452,2]
[388759969,1759350643568,-500.0,0.00019452,2]
[388759970,1759350643576,-500.0,0.00019452,2]
[388759971,1759350643585,-500.0,0.00019452,2]
[388759972,1759350643593,-500.0,0.00019452,2]
[388759973,1759350643602,-500.0,0.00019452,2]
[388759974,1759350643611,-540.01,0.00019452,2]
[388759975,1759350643620,-1757.96,0.00019452,2]
[388759976,1759350643636,-500.0,0.00019452,2]
[388759977,1759350643650,-460.0,0.00019452,2]
[388759978,1759350643663,-500.0,0.00019452,2]
[388759979,1759350643674,-1028.87,0.00019452,2]
[388759980,1759350643686,-500.0,0.00019452,2]
[388759981,1759350643699,-1307.06,0.00019452,2]
[388759982,1759350643712,-708.93,0.00019452,2]
[388759983,1759350643725,-500.0,0.00019452,2]
[388759984,1759350643737,-500.0,0.00019452,2]
[388759985,1759350643750,-500.0,0.00019452,2]
[388759986,1759350643764,-500.0,0.00019452,2]
[388759987,1759350643777,-500.0,0.00019452,2]
[388759988,1759350643789,-420.0,0.00019452,2]
[388759989,1759350643800,-564.28,0.00019452,2]
[388759990,1759350643812,-565.66,0.00019452,2]
[388759991,1759350643823,-500.0,0.00019452,2]
[388759992,1759350643835,-500.0,0.00019452,2]
[388759993,1759350643849,-500.0,0.00019452,2]
[388759996,1759350643862,-460.0,0.00019452,2]
[388759998,1759350643873,-500.0,0.00019452,2]
[388760000,1759350643884,-500.0,0.00019452,2]
[388760001,1759350643894,-657.58,0.00019452,2]
[388760002,1759350643906,-500.0,0.00019452,2]
[388760003,1759350643918,-500.0,0.00019452,2]
[388760004,1759350643930,-500.0,0.00019452,2]
[388760005,1759350643941,-380.0,0.00019452,2]
[388760006,1759350643954,-500.0,0.00019452,2]
[388760007,1759350643966,-500.0,0.00019452,2]
[388760008,1759350643980,-500.0,0.00019452,2]
[388760009,1759350643992,-500.0,0.00019452,2]
[388760010,1759350644005,-500.0,0.00019452,2]
[388760011,1759350644016,-500.0,0.00019452,2]
[388760012,1759350644026,-500.0,0.00019452,2]
[388760013,1759350644035,-500.0,0.00019452,2]
[388760014,1759350644046,-500.0,0.00019452,2]
[388760015,1759350644058,-500.0,0.00019452,2]
[388760016,1759350644071,-361.08212739,0.00019452,2]
[388760017,1759350644084,-711.7,0.00019452,2]
[388760018,1759350644093,-480.0,0.00019452,2]
[388760019,1759350644104,-500.0,0.00019452,2]
[388760020,1759350644114,-592.11414966,0.00019452,2]
[388760021,1759350644126,-500.0,0.00019452,2]
[388760022,1759350644137,-1986.09,0.00019452,2]
[388760023,1759350644147,-2161.31,0.00019452,2]
[388760024,1759350644157,-861.25,0.00019452,2]
[388760025,1759350644168,-500.0,0.00019452,2]
[388760026,1759350644179,-500.0,0.00019452,2]
[388760027,1759350644189,-500.0,0.00019452,2]
[388760028,1759350644200,-500.0,0.00019452,2]
[388760029,1759350644211,-623.46,0.00019452,2]
[388760030,1759350644221,-500.0,0.00019452,2]
[388760031,1759350644236,-500.0,0.00019452,2]
[388760032,1759350644247,-761.87,0.00019452,2]
[388760033,1759350644258,-500.0,0.00019452,2]
[388760034,1759350644268,-500.0,0.00019452,2]
[388760035,1759350644279,-500.0,0.00019452,2]
[388760036,1759350644290,-183.36210868,0.00019452,2]
[388760037,1759350644300,-500.0,0.00019452,2]
[388760038,1759350644313,-500.0,0.00019452,2]
[388760039,1759350644324,-500.0,0.00019452,2]
[388760040,1759350644334,-725.43,0.00019452,2]
[388760041,1759350644344,-500.0,0.00019452,2]
[388760042,1759350644355,-500.0,0.00019452,2]
[388760043,1759350644365,-500.0,0.00019452,2]
[388760044,1759350644377,-1361.93,0.00019452,2]
[388760045,1759350644388,-998.2,0.00019452,2]
[388760046,1759350644399,-500.0,0.00019452,2]
[388760047,1759350644409,-500.0,0.00019452,2]
[388760048,1759350644420,-500.0,0.00019452,2]
[388760049,1759350644431,-500.0,0.00019452,2]
[388760050,1759350644442,-500.0,0.00019452,2]
[388760051,1759350644452,-500.0,0.00019452,2]
[388760052,1759350644463,-750.07,0.00019452,2]
[388760053,1759350644473,-500.0,0.00019452,2]
[388760054,1759350644484,-500.0,0.00019452,2]
[388760055,1759350644495,-901.17,0.00019452,2]
[388760056,1759350644507,-500.0,0.00019452,2]
[388760057,1759350644517,-500.0,0.00019452,2]
[388760058,1759350644528,-2323.21,0.00019452,2]
[388760059,1759350644539,-400.0,0.00019452,2]
[388760060,1759350644549,-1205.53,0.00019452,2]
[388760061,1759350644560,-500.0,0.00019452,2]
[388760062,1759350644571,-3543.13,0.00019452,2]
[388760063,1759350644582,-500.0,0.00019452,2]
[388760064,1759350644593,-500.0,0.00019452,2]
[388760065,1759350644604,-500.0,0.00019452,2]
[388760066,1759350644615,-1169.76,0.00019452,2]
[388760067,1759350644627,-500.0,0.00019452,2]
[388760068,1759350644638,-500.0,0.00019452,2]
[388760069,1759350644649,-500.0,0.00019452,2]
[388760070,1759350644662,-1199.75,0.00019452,2]
[388760071,1759350644672,-500.0,0.00019452,2]
[388760072,1759350644683,-600.0,0.00019455,2]
[388760073,1759350644694,-500.0,0.00019473,2]
[388760074,1759350644705,-500.0,0.00019473,2]
[388760075,1759350644716,-158.31676954,0.00019473,2]
[388760076,1759350644727,-500.0,0.00019473,2]
[388760077,1759350644738,-299.67468952,0.00019473,2]
[388760078,1759350644748,-500.0,0.00019473,2]
[388760079,1759350644759,-500.0,0.00019473,2]
[388760080,1759350644769,-6423.45278677,0.00019489,2]
[388760081,1759350644780,-151.0,0.000195,2]
[388760082,1759350644791,-10371.89151959,0.00019561,2]
[388760083,1759350644802,-151.0,0.000197,2]
[388760084,1759350644813,-1000.0,0.00019721,2]
[388760085,1759350644824,-500.0,0.00019721,2]
[388760086,1759350644835,-1000.0,0.00019721,2]
[388760087,1759350644846,-1000.0,0.00019721,2]
[388760088,1759350644857,-1000.0,0.00019721,2]
[388760089,1759350644869,-1006.06717383,0.00019721,2]
[388760090,1759350644879,-1000.0,0.00019721,2]
[388760091,1759350644890,-1000.0,0.00019721,2]
[388760092,1759350644901,-1000.0,0.00019721,2]
[388760093,1759350644913,-1000.0,0.00019721,2]
[388760094,1759350644924,-1000.0,0.00019721,2]
[388760095,1759350644935,-1000.0,0.00019721,2]
[388760096,1759350644946,-1000.0,0.00019721,2]
[388760097,1759350644956,-1000.0,0.00019721,2]
[388760098,1759350645111,-1000.0,0.00019721,2]
[388760099,1759350645125,-1000.0,0.00019721,2]
[388760100,1759350645135,-500.0,0.00019726,2]
[388760101,1759350645144,-500.0,0.00019726,2]
[388760102,1759350645153,-487.65,0.00019726,2]
[388760103,1759350645162,-500.0,0.00019726,2]
[388760104,1759350645171,-500.0,0.00019726,2]
[388760105,1759350645180,-500.0,0.00019726,2]
[388760106,1759350645189,-500.0,0.00019726,2]
[388760107,1759350645198,-500.0,0.00019726,2]
[388760108,1759350645207,-500.0,0.00019726,2]
[388760109,1759350645216,-598.23,0.00019726,2]
[388760110,1759350645225,-163.53,0.00019726,2]
[388760111,1759350645241,-500.0,0.00019726,2]
[388760112,1759350645250,-515.25,0.00019726,2]
[388760113,1759350645259,-500.0,0.00019726,2]
[388760114,1759350645268,-500.0,0.00019726,2]
[388760115,1759350645278,-500.0,0.00019726,2]
[388760116,1759350645287,-500.0,0.00019726,2]
[388760117,1759350645295,-500.0,0.00019726,2]
[388760118,1759350645304,-500.0,0.00019726,2]
[388760119,1759350645315,-485.27,0.00019726,2]
[388760120,1759350645324,-500.0,0.00019726,2]
[388760121,1759350645334,-500.0,0.00019726,2]
[388760122,1759350645343,-581.37,0.00019726,2]
[388760123,1759350645352,-557.14,0.00019726,2]
[388760124,1759350645360,-685.18,0.00019726,2]
[388760125,1759350645369,-500.0,0.00019726,2]
[388760126,1759350645378,-537.25,0.00019726,2]
[388760127,1759350645387,-500.0,0.00019726,2]
[388760128,1759350645396,-465.99,0.00019726,2]
[388760129,1759350645404,-500.0,0.00019726,2]
[388760130,1759350645413,-500.0,0.00019726,2]
[388760131,1759350645422,-500.0,0.00019726,2]
[388760132,1759350645430,-500.0,0.00019726,2]
[388760133,1759350645440,-500.0,0.00019726,2]
[388760134,1759350645448,-500.0,0.00019726,2]
[388760135,1759350645457,-380.0,0.00019726,2]
[388760136,1759350645466,-500.0,0.00019726,2]
[388760137,1759350645474,-500.0,0.00019726,2]
[388760138,1759350645484,-360.0,0.00019726,2]
[388760139,1759350645493,-500.0,0.00019726,2]
[388760140,1759350645501,-500.0,0.00019726,2]
[388760141,1759350645510,-362.78913804,0.00019726,2]
[388760142,1759350645519,-500.0,0.00019726,2]
[388760143,1759350645528,-500.0,0.00019726,2]
[388760144,1759350645537,-500.0,0.00019726,2]
[388760145,1759350645546,-500.0,0.00019726,2]
[388760146,1759350645554,-500.0,0.00019726,2]
[388760147,1759350645563,-500.0,0.00019726,2]
[388760148,1759350645574,-708.67,0.00019726,2]
[388760149,1759350645583,-500.0,0.00019726,2]
[388760150,1759350645592,-500.0,0.00019726,2]
[388760151,1759350645601,-500.0,0.00019726,2]
[388760152,1759350645610,-500.0,0.00019726,2]
[388760153,1759350645619,-500.0,0.00019726,2]
[388760154,1759350645628,-500.0,0.00019726,2]
[388760155,1759350645637,-500.0,0.00019726,2]
[388760156,1759350645646,-500.0,0.00019726,2]
[388760157,1759350645655,-500.0,0.00019726,2]
[388760158,1759350645665,-500.0,0.00019726,2]
[388760159,1759350645674,-500.0,0.00019726,2]
[388760160,1759350645683,-500.0,0.00019726,2]
[388760161,1759350645692,-602.85402588,0.00019726,2]
[388760162,1759350645701,-500.0,0.00019726,2]
[388760163,1759350645710,-500.0,0.00019726,2]
[388760164,1759350645719,-500.0,0.00019726,2]
[388760165,1759350645728,-269.0,0.00019726,2]
[388760166,1759350645737,-500.0,0.00019726,2]
[388760167,1759350645746,-500.0,0.00019726,2]
[388760168,1759350645755,-500.0,0.00019726,2]
[388760169,1759350645764,-500.0,0.00019726,2]
[388760170,1759350645773,-500.0,0.00019726,2]
[388760171,1759350645782,-500.0,0.00019726,2]
[388760172,1759350645791,-860.49,0.00019726,2]
[388760173,1759350645800,-500.0,0.00019726,2]
[388760174,1759350645809,-500.0,0.00019726,2]
[388760175,1759350645818,-500.0,0.00019726,2]
[388760176,1759350645826,-500.0,0.00019726,2]
[388760177,1759350645835,-500.0,0.00019726,2]
[388760178,1759350645844,-500.0,0.00019726,2]
[388760179,1759350645853,-500.0,0.00019726,2]
[388760180,1759350645861,-500.0,0.00019726,2]
[388760181,1759350645871,-500.0,0.00019726,2]
[388760182,1759350645880,-500.0,0.00019726,2]
[388760183,1759350645889,-500.0,0.00019726,2]
[388760184,1759350645898,-500.0,0.00019726,2]
[388760185,1759350645907,-516.75,0.00019726,2]
[388760186,1759350645917,-500.0,0.00019726,2]
[388760187,1759350645925,-489.92,0.00019726,2]
[388760189,1759350645934,-500.0,0.00019726,2]
[388760190,1759350645943,-500.0,0.00019726,2]
[388760192,1759350645952,-500.0,0.00019726,2]
[388760193,1759350645961,-500.0,0.00019726,2]
[388760194,1759350645970,-500.0,0.00019726,2]
[388760195,1759350645979,-500.0,0.00019726,2]
[388760196,1759350645988,-500.0,0.00019726,2]
[388760198,1759350645996,-4127.3,0.00019726,2]
[388760200,1759350646005,-500.0,0.00019726,2]
[388760202,1759350646014,-577.79,0.00019726,2]
[388760203,1759350646022,-500.0,0.00019726,2]
[388760205,1759350646031,-1178.69,0.00019726,2]
[388760207,1759350646040,-500.0,0.00019726,2]
[388760209,1759350646048,-500.0,0.00019726,2]
[388760210,1759350646057,-500.0,0.00019726,2]
[388760212,1759350646066,-500.0,0.00019726,2]
[388760214,1759350646076,-500.0,0.00019726,2]
[388760216,1759350646086,-500.0,0.00019726,2]
[388760218,1759350646095,-500.0,0.00019726,2]
[388760220,1759350646103,-500.0,0.00019726,2]
[388760222,1759350646112,-207.83752247,0.00019726,2]
[388760225,1759350646121,-500.0,0.00019726,2]
[388760227,1759350646130,-500.0,0.00019726,2]
[388760230,1759350646140,-373.01,0.00019726,2]
[388760231,1759350646150,-5182.02,0.00019726,2]
[388760234,1759350646159,-500.0,0.00019726,2]
[388760235,1759350646168,-500.0,0.00019726,2]
[388760237,1759350646178,-500.0,0.00019726,2]
[388760238,1759350646187,-500.0,0.00019726,2]
[388760240,1759350646196,-500.0,0.00019726,2]
[388760241,1759350646206,-500.0,0.00019726,2]
[388760243,1759350646216,-500.0,0.00019726,2]
[388760244,1759350646225,-980.49,0.00019726,2]
[388760246,1759350646239,-500.0,0.00019726,2]
[388760248,1759350646248,-940.27,0.00019726,2]
[388760249,1759350646257,-2384.47,0.00019726,2]
[388760251,1759350646266,-500.0,0.00019726,2]
[388760253,1759350646275,-500.0,0.00019726,2]
[388760254,1759350646283,-559.4,0.00019726,2]
[388760256,1759350646292,-500.0,0.00019726,2]
[388760258,1759350646302,-189.66,0.00019726,2]
[388760260,1759350646310,-540.01,0.00019726,2]
[388760261,1759350646319,-1757.96,0.00019726,2]
[388760263,1759350646328,-500.0,0.00019726,2]
[388760264,1759350646337,-1028.87,0.00019726,2]
[388760266,1759350646346,-500.0,0.00019726,2]
[388760267,1759350646355,-1307.06,0.00019726,2]
[388760269,1759350646363,-708.93,0.00019726,2]
[388760270,1759350646372,-500.0,0.00019726,2]
[388760271,1759350646381,-500.0,0.00019726,2]
[388760272,1759350646390,-500.0,0.00019726,2]
[388760273,1759350646399,-500.0,0.00019726,2]
[388760274,1759350646407,-500.0,0.00019726,2]
[388760275,1759350646416,-564.28,0.00019726,2]
[388760276,1759350646426,-565.66,0.00019726,2]
[388760277,1759350646435,-500.0,0.00019726,2]
[388760278,1759350646444,-500.0,0.00019726,2]
[388760279,1759350646453,-500.0,0.00019726,2]
[388760280,1759350646462,-500.0,0.00019726,2]
[388760281,1759350646472,-500.0,0.00019726,2]
[388760282,1759350646480,-657.58,0.00019726,2]
[388760283,1759350646489,-500.0,0.00019726,2]
[388760284,1759350646498,-340.0,0.00019726,2]
[388760285,1759350646507,-500.0,0.00019726,2]
[388760286,1759350646516,-500.0,0.00019726,2]
[388760287,1759350646525,-500.0,0.00019726,2]
[388760288,1759350646534,-500.0,0.00019726,2]
[388760289,1759350646542,-500.0,0.00019726,2]
[388760290,1759350646551,-500.0,0.00019726,2]
[388760291,1759350646560,-500.0,0.00019726,2]
[388760292,1759350646569,-500.0,0.00019726,2]
[388760293,1759350646579,-500.0,0.00019726,2]
[388760294,1759350646588,-500.0,0.00019726,2]
[388760295,1759350646597,-380.0,0.00019726,2]
[388760296,1759350646607,-711.7,0.00019726,2]
[388760297,1759350646615,-500.0,0.00019726,2]
[388760298,1759350646625,-500.0,0.00019726,2]
[388760299,1759350646634,-1986.09,0.00019726,2]
[388760300,1759350646643,-2161.31,0.00019726,2]
[388760301,1759350646653,-861.25,0.00019726,2]
[388760302,1759350646662,-500.0,0.00019726,2]
[388760303,1759350646671,-500.0,0.00019726,2]
[388760304,1759350646680,-500.0,0.00019726,2]
[388760305,1759350646689,-500.0,0.00019726,2]
[388760306,1759350646698,-623.46,0.00019726,2]
[388760307,1759350646708,-500.0,0.00019726,2]
[388760308,1759350646716,-500.0,0.00019726,2]
[388760309,1759350646726,-761.87,0.00019726,2]
[388760310,1759350646735,-500.0,0.00019726,2]
[388760311,1759350646744,-500.0,0.00019726,2]
[388760312,1759350646753,-500.0,0.00019726,2]
[388760313,1759350646763,-500.0,0.00019726,2]
[388760314,1759350646772,-500.0,0.00019726,2]
[388760315,1759350646781,-500.0,0.00019726,2]
[388760316,1759350646790,-725.43,0.00019726,2]
[388760317,1759350646799,-500.0,0.00019726,2]
[388760318,1759350646809,-500.0,0.00019726,2]
[388760319,1759350646818,-500.0,0.00019726,2]
[388760320,1759350646827,-1361.93,0.00019726,2]
[388760321,1759350646837,-998.2,0.00019726,2]
[388760322,1759350646846,-500.0,0.00019726,2]
[388760323,1759350646855,-632.55651801,0.00019726,2]
[388760324,1759350646864,-500.0,0.00019726,2]
[388760325,1759350646873,-500.0,0.00019726,2]
[388760326,1759350646883,-500.0,0.00019726,2]
[388760327,1759350646891,-500.0,0.00019726,2]
[388760328,1759350646900,-750.07,0.00019726,2]
[388760329,1759350646909,-500.0,0.00019726,2]
[388760330,1759350646918,-500.0,0.00019726,2]
[388760331,1759350646932,-901.17,0.00019726,2]
[388760332,1759350646940,-500.0,0.00019726,2]
[388760333,1759350646950,-500.0,0.00019726,2]
[388760334,1759350646959,-2323.21,0.00019726,2]
[388760335,1759350646969,-1205.53,0.00019726,2]
[388760336,1759350646978,-500.0,0.00019726,2]
[388760337,1759350646987,-3543.13,0.00019726,2]
[388760338,1759350646996,-500.0,0.00019726,2]
[388760339,1759350647006,-400.0,0.00019726,2]
[388760340,1759350647015,-500.0,0.00019726,2]
[388760341,1759350647024,-1169.76,0.00019726,2]
[388760342,1759350647033,-319.19669334,0.00019726,2]
[388760343,1759350647042,-500.0,0.00019726,2]
[388760344,1759350647051,-500.0,0.00019726,2]
[388760345,1759350647060,-500.0,0.00019726,2]
[388760346,1759350647069,-500.0,0.00019773,2]
[388760347,1759350647079,-200.01019669,0.00019773,2]
[388760348,1759350647088,-200.0117218,0.00019773,2]
[388760350,1759350647097,-200.01019671,0.00019773,2]
[388760351,1759350647106,-500.0,0.00019773,2]
[388760352,1759350647115,-200.01019671,0.00019773,2]
[388760353,1759350647124,-200.0117218,0.00019773,2]
[388760354,1759350647133,-176.23590451,0.00019773,2]
[388760355,1759350647142,-471.20805777,0.00019773,2]
[388760356,1759350647152,-500.0,0.00019773,2]
[388760357,1759350647161,-500.0,0.00019773,2]
[388760358,1759350647170,-500.0,0.00019773,2]
[388760359,1759350647179,-487.30246011,0.00019773,2]
[388760360,1759350647188,-200.01172182,0.00019773,2]
[388760361,1759350647197,-200.41102314,0.00019773,2]
[388760362,1759350647208,-500.0,0.00019773,2]
[388760363,1759350647219,-500.0,0.00019773,2]
[388760364,1759350647231,-151.0,0.000198,2]
[388760365,1759350647243,-6423.45278677,0.000199,2]
[388760366,1759350647252,-176.55544409,0.000199,2]
[388760367,1759350647261,-9563.5294484,0.00019904,2]
[388760368,1759350647271,-264.95,0.00019971,2]
[388760369,1759350647282,-500.0,0.00019973,2]
[388760370,1759350647292,-500.0,0.00019973,2]
[388760371,1759350647301,-500.0,0.00019973,2]
[388760372,1759350647311,-500.0,0.00019973,2]
[388760373,1759350647320,-500.0,0.00019973,2]
[388760374,1759350647329,-341.26036651,0.00019973,2]
[388760375,1759350647339,-500.0,0.00019973,2]
[388760376,1759350647348,-500.0,0.00019973,2]
[388760377,1759350647356,-500.0,0.00019973,2]
[388760378,1759350647365,-500.0,0.00019973,2]
[388760379,1759350647374,-500.0,0.00019973,2]
[388760380,1759350647383,-500.0,0.00019973,2]
[388760381,1759350647392,-158.96308781,0.00019973,2]
[388760382,1759350647402,-500.0,0.00019973,2]
[388760383,1759350647411,-500.0,0.00019973,2]
[388760384,1759350647420,-256.69308645,0.00019973,2]
[388760385,1759350647430,-500.0,0.00019973,2]
[388760386,1759350647439,-500.0,0.00019973,2]
[388760387,1759350647447,-200.01019669,0.00019973,2]
[388760388,1759350647457,-150.40881481,0.00019973,2]
[388760389,1759350647466,-291.0232396,0.00019973,2]
[388760390,1759350647475,-500.0,0.00019973,2]
[388760391,1759350647484,-500.0,0.00019973,2]
[388760392,1759350647494,-197.4,0.00019973,2]
[388760393,1759350647502,-500.0,0.00019973,2]
[388760394,1759350647512,-500.0,0.00019973,2]
[388760395,1759350647521,-500.0,0.00019973,2]
[388760396,1759350647530,-500.0,0.00019973,2]
[388760397,1759350647539,-500.0,0.00019973,2]
[388760398,1759350647548,-500.0,0.00019973,2]
[388760399,1759350647557,-500.0,0.00019973,2]
[388760400,1759350647566,-500.0,0.00019973,2]
[388760401,1759350647575,-500.0,0.00019973,2]
[388760402,1759350647584,-500.0,0.00019973,2]
[388760403,1759350647593,-500.0,0.00019973,2]
[388760404,1759350647602,-500.0,0.00019973,2]
[388760405,1759350647611,-500.0,0.00019973,2]
[388760406,1759350647620,-500.0,0.00019973,2]
[388760407,1759350647629,-500.0,0.00019973,2]
[388760408,1759350647639,-500.0,0.00019973,2]
[388760409,1759350647648,-500.0,0.00019973,2]
[388760410,1759350647657,-500.0,0.00019973,2]
[388760411,1759350647666,-238141.89294837,0.00019975,2]
[388760412,1759350647675,-100000.0,0.0001999,2]
[388760413,1759350647685,-500.0,0.0002,2]
[388760414,1759350647694,-380.0,0.0002,2]
[388760415,1759350647703,-446.52,0.0002,2]
[388760416,1759350647712,-500.0,0.0002,2]
[388760417,1759350647721,-500.0,0.0002,2]
[388760418,1759350647730,-198.69093922,0.0002,2]
[388760419,1759350647740,-500.0,0.0002,2]
[388760420,1759350647749,-500.0,0.0002,2]
[388760421,1759350647758,-400.0,0.0002,2]
[388760422,1759350647767,-500.0,0.0002,2]
[388760423,1759350647776,-500.0,0.0002,2]
[388760424,1759350647786,-500.0,0.0002,2]
[388760425,1759350647796,-500.0,0.0002,2]
[388760426,1759350647805,-500.0,0.0002,2]
[388760427,1759350647815,-500.0,0.0002,2]
[388760428,1759350647824,-486.33,0.0002,2]
[388760429,1759350647834,-500.0,0.0002,2]
[388760430,1759350647844,-500.0,0.0002,2]
[388760431,1759350647853,-581.37,0.0002,2]
[388760432,1759350647862,-557.14,0.0002,2]
[388760433,1759350647871,-685.18,0.0002,2]
[388760434,1759350647880,-500.0,0.0002,2]
[388760435,1759350647889,-537.25,0.0002,2]
[388760436,1759350647898,-500.0,0.0002,2]
[388760437,1759350647907,-500.0,0.0002,2]
[388760438,1759350647916,-500.0,0.0002,2]
[388760439,1759350647926,-500.0,0.0002,2]
[388760440,1759350647935,-500.0,0.0002,2]
[388760441,1759350647944,-500.0,0.0002,2]
[388760442,1759350647953,-500.0,0.0002,2]
[388760443,1759350647962,-500.0,0.0002,2]
[388760444,1759350648091,-500.0,0.0002,2]
[388760445,1759350648100,-500.0,0.0002,2]
[388760446,1759350648109,-500.0,0.0002,2]
[388760447,1759350648118,-500.0,0.0002,2]
[388760448,1759350648127,-324.68907084,0.0002,2]
[388760449,1759350648135,-361.44,0.0002,2]
[388760450,1759350648144,-340.0,0.0002,2]
[388760451,1759350648153,-500.0,0.0002,2]
[388760452,1759350648162,-487.85327465,0.0002,2]
[388760453,1759350648171,-500.0,0.0002,2]
[388760454,1759350648180,-708.67,0.0002,2]
[388760455,1759350648189,-500.0,0.0002,2]
[388760456,1759350648198,-500.0,0.0002,2]
[388760457,1759350648207,-500.0,0.0002,2]
[388760458,1759350648217,-420.0,0.0002,2]
[388760459,1759350648227,-250.59,0.0002,2]
[388760460,1759350648238,-500.0,0.0002,2]
[388760461,1759350648248,-500.0,0.0002,2]
[388760462,1759350648257,-500.0,0.0002,2]
[388760463,1759350648265,-497.13822185,0.0002,2]
[388760464,1759350648275,-500.0,0.0002,2]
[388760465,1759350648284,-500.0,0.0002,2]
[388760466,1759350648293,-500.0,0.0002,2]
[388760467,1759350648302,-592.5359093,0.0002,2]
[388760468,1759350648311,-500.0,0.0002,2]
[388760469,1759350648321,-500.0,0.0002,2]
[388760470,1759350648329,-500.0,0.0002,2]
[388760471,1759350648339,-151.0,0.0002,2]